bitfinex/quotes_ETHUSD_20220118
["timestamp","ask_amount","ask_price","bid_price","bid_amount"]
[1642514064100,0.7969,3137.9,3137.6,0.00227369]
[1642514064302,1.26767158,3138.0,3137.6,0.00227369]
[1642514064499,4.91240294,3138.0,3137.6,0.00227369]
[1642514064699,1.39507158,3138.0,3137.6,0.00227369]
[1642514066445,3.61082499,3137.9,3137.6,0.00227369]
[1642514066647,1.38249,3137.8,3137.6,0.00227369]
[1642514066850,8.03584892,3137.7,3137.6,0.00227369]
[1642514067044,8.62124892,3137.7,3137.6,0.00227369]
[1642514067245,8.92124892,3137.7,3137.6,0.00227369]
[1642514067848,6.85375536,3137.6,3137.5,0.00284212]
[1642514068048,10.59684771,3137.6,3137.5,0.00284212]
[1642514068889,0.79709,3137.8,3137.5,0.00284212]
[1642514069091,1.0,3137.9,3137.5,0.00284212]
[1642514069493,0.29801151,3137.7,3137.5,0.00284212]
[1642514070091,0.29801151,3137.7,3137.6,3.6274]
[1642514070494,0.29801151,3137.7,3137.6,3.62967369]
[1642514071093,2.22752732,3138.2,3137.7,1.09613906]
[1642514071293,2.22752732,3138.2,3137.8,0.05177414]
[1642514071294,0.00113685,3138.2,3137.8,0.05177414]
[1642514071594,0.00113685,3138.2,3137.9,0.92397]
[1642514071793,0.00113685,3138.2,3138.0,4.35034805]
[1642514071997,0.00113685,3138.2,3138.1,9.68634869]
[1642514072443,0.00113685,3138.2,3138.1,10.68634869]
[1642514072844,0.00113685,3138.2,3138.1,8.57756145]
[1642514073040,3.24369428,3139.0,3138.3,0.79634]
[1642514073241,3.24369428,3139.0,3138.4,4.90914097]
[1642514073443,0.00397896,3138.9,3138.4,5.20914097]
[1642514073742,0.254991,3139.7,3138.4,5.20914097]
[1642514073743,0.00341054,3138.8,3138.5,2.592574]
[1642514073941,0.00341054,3138.8,3138.7,8.8036319]
[1642514074141,0.127591,3139.7,3138.7,8.8036319]
[1642514074342,0.127591,3139.7,3138.7,3.9000019]
[1642514074546,0.00795793,3139.6,3138.7,1.15526323]
[1642514074943,0.0073895,3139.5,3138.7,1.15526323]
[1642514075144,1.48682138,3139.4,3138.7,1.15526323]
[1642514075344,1.48682138,3139.4,3138.7,3.87509129]
[1642514075345,1.49364246,3139.4,3138.7,3.87509129]
[1642514075645,2.29805354,3139.1,3138.7,2.71982806]
[1642514075847,2.29805354,3139.1,3138.8,0.00284212]
[1642514076113,0.1274,3139.0,3138.8,0.00284212]
[1642514076603,1.14353639,3138.9,3138.8,0.00284212]
[1642514076808,1.27093639,3138.9,3138.8,0.00284212]
[1642514077007,1.27093639,3138.9,3137.8,7.72577012]
[1642514077008,1.27093639,3138.9,3138.4,0.00511582]
[1642514077220,0.1274,3138.8,3138.4,0.00511582]
[1642514077410,0.5854,3138.8,3138.0,0.00738951]
[1642514077812,1.38226,3138.8,3138.0,0.00738951]
[1642514078011,1.72222362,3138.5,3138.0,0.00738951]
[1642514078210,1.15311578,3138.3,3138.0,0.00738951]
[1642514078411,0.1274,3138.2,3138.0,0.00738951]
[1642514083357,0.1274,3138.2,3138.0,0.04691728]
[1642514083598,0.28751891,3138.6,3138.0,0.04691728]
[1642514083795,0.28751891,3138.6,3138.1,0.05820781]
[1642514084196,0.28751891,3138.6,3138.2,0.00625266]
[1642514084396,0.28751891,3138.6,3138.5,4.02634227]
[1642514084801,0.28751891,3138.6,3138.5,4.03088966]
[1642514085601,0.28751891,3138.6,3138.5,4.82733466]
[1642514085803,0.28751891,3138.6,3138.5,0.80099239]
[1642514086003,0.28751891,3138.6,3138.5,0.00454739]
[1642514087001,0.28751891,3138.6,3138.2,0.00625266]
[1642514087202,2.27992965,3138.6,3138.2,0.00625266]
[1642514088449,2.27992965,3138.6,3138.1,0.00682109]
[1642514090853,0.28751891,3138.6,3138.0,0.80399771]
[1642514091100,0.28751891,3138.6,3138.1,0.00682109]
[1642514091998,2.17765714,3138.5,3138.1,0.00682109]
[1642514092398,2.17765714,3138.5,3137.8,1.7206007]
[1642514092399,2.17765714,3138.5,3138.0,0.00738951]
[1642514092600,2.17765714,3138.5,3138.0,0.80399241]
[1642514092804,2.17765714,3138.5,3138.0,0.7966029]
[1642514092999,2.17765714,3138.5,3138.1,0.00682109]
[1642514094705,2.17765714,3138.5,3137.9,0.00795793]
[1642514095351,0.1274,3138.4,3137.9,0.00795793]
[1642514095547,0.1274,3138.4,3137.7,0.00909478]
[1642514095746,2.17765714,3138.5,3137.6,0.0096632]
[1642514095747,2.30505714,3138.5,3137.6,0.0096632]
[1642514096145,2.30505714,3138.5,3137.6,0.8063232]
[1642514096346,1.6957736,3138.0,3137.7,0.7966875]
[1642514096545,1.6957736,3138.0,3137.7,0.80578228]
[1642514096746,1.6957736,3138.0,3137.8,0.00852636]
[1642514096947,0.1274,3138.5,3137.8,0.00852636]
[1642514097146,0.28751891,3138.6,3137.8,0.00852636]
[1642514097347,0.28751891,3138.6,3137.9,0.7966389]
[1642514097646,0.28751891,3138.6,3138.0,0.00738951]
[1642514098597,1.09451185,3138.1,3138.0,0.00738951]
[1642514098796,1.09451185,3138.1,3137.9,0.00795793]
[1642514098797,2.77168467,3138.1,3137.9,0.00795793]
[1642514098995,0.1274,3138.0,3137.7,0.00909478]
[1642514099196,2.77168467,3138.1,3137.6,0.0096632]
[1642514099597,0.1274,3138.0,3137.6,0.0096632]
[1642514100404,0.9243,3138.0,3137.6,0.0096632]
[1642514103744,2.77168467,3138.1,3137.7,0.05165817]
[1642514104142,2.77168467,3138.1,3137.8,0.00852636]
[1642514104750,1.67717282,3138.1,3137.7,0.00909478]
[1642514104948,0.58553042,3138.6,3137.7,0.7967096]
[1642514105148,0.58553042,3138.6,3137.8,0.1274]
[1642514105349,0.58553042,3138.6,3137.9,0.03880246]
[1642514105554,0.28751891,3138.6,3138.0,0.1274]
[1642514105848,0.28751891,3138.6,3138.2,1.23871027]
[1642514106093,2.12474726,3138.6,3138.2,1.23871027]
[1642514106293,2.12474726,3138.6,3138.3,0.00568424]
[1642514106495,0.1274,3139.1,3138.3,0.00568424]
[1642514106727,3.54170579,3139.3,3138.4,0.1274]
[1642514106896,0.29801151,3139.5,3138.5,0.04795269]
[1642514107095,0.29801151,3139.5,3138.6,0.1274]
[1642514107294,0.29801151,3139.5,3138.7,0.4964212]
[1642514107494,2.27608062,3139.3,3138.7,1.29611175]
[1642514107698,0.29801151,3139.5,3138.9,1.10322154]
[1642514107894,0.29801151,3139.5,3139.0,0.79626]
[1642514108109,1.28566217,3139.6,3139.1,0.7962696]
[1642514108295,0.1292038,3140.0,3139.1,0.79740645]
[1642514108495,0.00113684,3139.5,3139.1,0.79740645]
[1642514108897,0.00113684,3139.5,3139.1,0.00113685]
[1642514109300,0.1274,3139.4,3139.0,0.00170527]
[1642514109500,0.1274,3139.4,3138.8,0.00284212]
[1642514109501,4.10103551,3139.4,3138.8,0.00284212]
[1642514109705,3.01069116,3139.3,3138.8,0.00284212]
[1642514109949,0.1274,3139.2,3138.8,0.00284212]
[1642514110152,1.19688259,3139.3,3138.8,0.00284212]
[1642514110347,1.19688259,3139.3,3138.6,1.39468564]
[1642514110546,1.19688259,3139.3,3138.7,0.00341055]
[1642514111348,1.19688259,3139.3,3138.8,0.7964554]
[1642514111554,0.00113684,3139.5,3138.8,0.7964554]
[1642514111751,0.00113684,3139.5,3138.9,0.3022737]
[1642514111952,0.00113684,3139.5,3139.0,0.1274]
[1642514112153,0.00113684,3139.5,3139.0,0.12910527]
[1642514112352,0.00113684,3139.5,3139.1,0.00113685]
[1642514112556,0.00113684,3139.5,3139.2,0.1274]
[1642514112753,0.00113684,3139.5,3139.1,0.00113685]
[1642514112954,1.27707706,3139.2,3139.1,0.00113685]
[1642514113258,1.27707706,3139.2,3138.9,0.0022737]
[1642514113259,1.40447706,3139.2,3138.9,0.0022737]
[1642514113455,0.1274,3139.1,3138.9,0.0022737]
[1642514113693,0.1274,3139.1,3138.3,1.2172]
[1642514113694,2.14954438,3139.0,3138.5,0.00454739]
[1642514113893,2.94623438,3139.0,3138.5,0.00454739]
[1642514114298,1.49807194,3138.7,3138.5,0.00454739]
[1642514114496,0.1274,3138.9,3138.5,0.00454739]
[1642514115704,3.57418709,3139.0,3138.5,0.00454739]
[1642514117541,3.57418709,3139.0,3138.6,0.7964948]
[1642514117941,3.57418709,3139.0,3138.7,0.00341055]
[1642514118545,3.57418709,3139.0,3138.5,0.00454739]
[1642514118947,0.14736279,3138.9,3138.5,0.00454739]
[1642514119145,0.00535713,3138.8,3138.3,0.00568424]
[1642514119345,0.1274,3138.7,3138.1,0.00682109]
[1642514119546,0.1274,3138.9,3138.1,0.00682109]
[1642514120552,1.53460032,3138.3,3138.1,0.00682109]
[1642514120851,0.1274,3138.2,3138.1,0.00682109]
[1642514121097,0.1274,3138.9,3138.1,0.00682109]
[1642514121294,0.1274,3138.6,3138.1,0.00682109]
[1642514121494,0.1274,3138.9,3138.1,0.00682109]
[1642514121694,0.1274,3138.9,3137.6,0.0096632]
[1642514122299,1.22124474,3138.4,3137.6,0.0096632]
[1642514122600,1.22124474,3138.4,3138.0,0.796645]
[1642514123100,1.22124474,3138.4,3138.1,0.00682109]
[1642514125452,1.22124474,3138.4,3137.8,0.00852636]
[1642514125653,3.80916144,3137.9,3137.8,0.00852636]
[1642514126956,1.46805313,3137.9,3137.8,0.00852636]
[1642514127457,5.49545313,3137.9,3137.8,0.00852636]
[1642514127656,5.49545313,3137.9,3137.6,0.0096632]
[1642514127857,0.1274,3137.8,3137.6,0.0096632]
[1642514128258,4.23730962,3137.7,3137.6,0.0096632]
[1642514128457,4.36470962,3137.7,3137.6,0.0096632]
[1642514128694,5.16167962,3137.7,3137.6,0.0096632]
[1642514128898,8.8638405,3137.7,3137.6,0.0096632]
[1642514130303,5.7,3137.6,3137.4,0.0018038]
[1642514130504,8.22333652,3137.5,3137.4,0.0018038]
[1642514130702,4.7274,3137.5,3137.4,0.0018038]
[1642514130902,4.7274,3137.5,3137.4,0.00294065]
[1642514131102,5.1854,3137.5,3137.4,0.00294065]
[1642514131703,0.79726,3137.3,3136.8,1.60381933]
[1642514132102,0.79726,3137.3,3136.9,0.00284212]
[1642514132354,0.1275,3137.2,3136.9,0.00284212]
[1642514132547,0.1275,3137.2,3136.7,0.00397896]
[1642514132751,1.37422883,3137.4,3136.7,0.00397896]
[1642514133050,1.24672883,3137.4,3136.7,0.00397896]
[1642514134754,1.24672883,3137.4,3136.8,1.48064664]
[1642514134953,0.1275,3137.9,3136.9,0.06249384]
[1642514135152,0.47278854,3138.1,3136.9,4.08100861]
[1642514135351,0.00227369,3137.8,3137.0,0.00227369]
[1642514135553,0.00341054,3138.0,3137.2,0.04737978]
[1642514135752,0.00170527,3137.7,3137.0,0.12967369]
[1642514135953,2.03238962,3137.6,3137.0,0.12967369]
[1642514136199,2.03352647,3137.6,3137.1,0.00170527]
[1642514136603,2.16092647,3137.6,3137.1,0.00170527]
[1642514136800,2.16092647,3137.6,3137.0,0.00227369]
[1642514137200,2.95791647,3137.6,3137.0,0.00227369]
[1642514137400,1.13614801,3137.1,3137.0,0.00227369]
[1642514138000,1.13614801,3137.1,3136.8,0.00341054]
[1642514138202,1.13614801,3137.1,3136.7,0.00397896]
[1642514139104,3.57397311,3137.0,3136.7,0.00397896]
[1642514139301,0.28810475,3137.0,3136.7,0.00397896]
[1642514139876,0.79721,3136.9,3136.7,0.00397896]
[1642514141066,0.41560475,3137.0,3136.7,0.00397896]
[1642514141267,0.28810475,3137.0,3136.7,0.00397896]
[1642514142269,0.1275,3136.9,3136.7,0.00397896]
[1642514142471,1.1843,3136.9,3136.7,0.00397896]
[1642514142670,2.1843,3136.9,3136.7,0.00397896]
[1642514142868,5.7,3136.8,3135.8,3.78868656]
[1642514143069,1.14559567,3135.9,3135.8,3.78868656]
[1642514143269,1.14559567,3135.9,3135.3,5.2004903]
[1642514143468,1.14559567,3135.9,3135.3,1.5946903]
[1642514143695,1.14559567,3135.9,3135.7,0.7973452]
[1642514144096,1.14559567,3135.9,3135.8,0.00511582]
[1642514144300,0.1275,3136.4,3135.8,0.00511582]
[1642514144301,0.9248,3136.4,3135.8,0.00511582]
[1642514144506,0.1296,3138.6,3135.8,0.00511582]
[1642514144507,0.1275,3136.6,3136.2,0.05638204]
[1642514144803,0.28810475,3137.0,3136.3,0.9267037]
[1642514145000,0.28810475,3137.0,3136.3,0.7992037]
[1642514145201,0.00113685,3136.9,3136.4,0.12920527]
[1642514145400,1.28567813,3136.8,3136.4,0.00170527]
[1642514145602,1.28567813,3136.8,3136.5,0.00113685]
[1642514145801,1.28567813,3136.8,3136.5,1.5942036]
[1642514146000,0.1275,3136.7,3136.4,0.00170527]
[1642514146202,2.08091985,3136.6,3136.4,0.00170527]
[1642514146402,2.08091985,3136.6,3135.6,0.9247]
[1642514146403,0.1275,3136.5,3136.3,0.0022737]
[1642514146601,0.1275,3136.5,3136.3,0.7995506]
[1642514146805,0.1275,3136.5,3136.3,0.7972769]
[1642514147001,2.08091985,3136.6,3136.4,0.00170527]
[1642514147647,1.28567813,3136.8,3136.4,0.00170527]
[1642514149252,0.12863685,3136.9,3136.4,0.00170527]
[1642514149460,0.00113685,3136.9,3136.7,0.0129451]
[1642514149655,0.00113685,3136.9,3136.7,0.809843]
[1642514150055,0.1275,3137.6,3136.7,0.809843]
[1642514150257,0.1275,3137.6,3137.0,1.5939103]
[1642514150457,1.22813813,3137.4,3137.0,1.5939103]
[1642514150856,0.00227369,3137.3,3137.0,1.5939103]
[1642514151105,0.12977369,3137.3,3137.0,1.5939103]
[1642514151300,0.00170526,3137.2,3137.0,1.5939103]
[1642514151703,0.00113684,3137.1,3137.0,1.5939103]
[1642514152109,0.00170526,3137.1,3137.0,1.5939103]
[1642514152304,0.12920526,3137.1,3137.0,1.5939103]
[1642514152502,0.00170526,3137.1,3137.0,1.5939103]
[1642514155048,0.1275,3137.3,3137.2,0.84527575]
[1642514155248,0.0018038,3137.7,3137.2,0.84527575]
[1642514155249,0.1275,3137.6,3137.2,0.84527575]
[1642514155449,0.1275,3137.6,3137.2,0.7968978]
[1642514155649,0.1297737,3137.6,3137.3,0.03831314]
[1642514155851,0.0018038,3137.7,3137.3,2.3905571]
[1642514156048,0.0018038,3137.7,3137.4,0.79796144]
[1642514157154,0.0018038,3137.7,3137.5,0.04187341]
[1642514157449,0.34528854,3138.1,3137.6,0.03899937]
[1642514157649,0.34528854,3138.1,3137.5,6.8402949]
[1642514157851,0.00227369,3138.0,3137.8,1.19629135]
[1642514158352,0.00170527,3137.9,3137.8,1.19629135]
[1642514158798,0.34528854,3138.1,3137.8,1.19629135]
[1642514158999,0.34528854,3138.1,3137.8,1.49629135]
[1642514159200,0.34528854,3138.1,3137.9,2.71922383]
[1642514160002,0.34528854,3138.1,3137.9,2.61922383]
[1642514160203,0.34528854,3138.1,3137.8,0.7967739]
[1642514160404,0.1274,3138.0,3137.8,0.7967739]
[1642514160704,1.91993665,3138.0,3137.8,0.7967739]
[1642514163748,1.79253665,3138.0,3137.8,0.7967739]
[1642514165452,2.58941665,3138.0,3137.8,0.7967739]
[1642514165652,0.34528854,3138.1,3137.8,0.7967739]
[1642514165854,1.36763918,3138.3,3137.8,0.7967739]
[1642514166112,2.44919516,3138.5,3137.8,1.0967739]
[1642514166302,0.00170527,3138.2,3137.9,0.5854]
[1642514166500,0.80163813,3138.5,3138.0,6.06510333]
[1642514166701,0.80163813,3138.5,3138.1,0.1274]
[1642514166902,0.00113684,3138.4,3138.1,0.1274]
[1642514167202,0.80163813,3138.8,3138.1,0.1274]
[1642514167203,0.00284211,3138.7,3138.1,0.1274]
[1642514167505,0.80163813,3138.8,3138.4,1.14247957]
[1642514167506,0.00227369,3138.6,3138.4,1.14247957]
[1642514167703,0.00227369,3138.6,3138.4,0.9319]
[1642514167903,0.00170527,3138.5,3138.4,0.9319]
[1642514169308,0.00170527,3138.5,3138.0,3.03472923]
[1642514169508,0.00170527,3138.5,3138.0,3.33472923]
[1642514169710,0.00170527,3138.5,3138.0,2.15052923]
[1642514169956,0.00170527,3138.5,3138.0,2.27792923]
[1642514170161,0.00170527,3138.5,3138.3,1.5929488]
[1642514171059,0.0018038,3139.2,3138.4,0.36580323]
[1642514171060,0.1292038,3139.2,3138.4,0.36580323]
[1642514171262,0.1292038,3139.2,3138.6,0.7964779]
[1642514171459,0.1292038,3139.2,3138.7,9.67713522]
[1642514171460,0.00170527,3138.8,3138.7,9.67713522]
[1642514171658,0.0018038,3139.2,3138.8,0.03796257]
[1642514171859,0.0018038,3139.2,3138.8,0.49596257]
[1642514172061,0.00170527,3139.1,3138.8,2.50321419]
[1642514172259,0.00170527,3139.1,3138.9,1.09120919]
[1642514172560,0.00113685,3139.0,3138.9,1.39120919]
[1642514172959,0.00113685,3139.0,3138.9,2.18755879]
[1642514173160,0.00113685,3139.0,3138.7,0.1274]
[1642514173607,2.2424988,3138.9,3138.7,0.1274]
[1642514173802,3.37406,3138.8,3138.7,0.1274]
[1642514174006,3.37406,3138.8,3138.0,0.00113684]
[1642514174007,3.2,3138.7,3138.0,0.00113684]
[1642514174207,3.92894245,3138.8,3138.0,0.00113684]
[1642514174208,1.18198133,3138.5,3138.0,0.00113684]
[1642514174405,1.18198133,3138.5,3138.0,0.00454739]
[1642514174604,1.85834109,3138.1,3138.0,0.00454739]
[1642514175205,1.85834109,3138.1,3137.8,0.80238964]
[1642514175409,1.85834109,3138.1,3137.8,0.7967054]
[1642514175604,1.85834109,3138.1,3137.9,0.00511581]
[1642514176006,0.1274,3138.4,3137.6,1.09870472]
[1642514176208,0.1274,3138.4,3137.8,0.7966993]
[1642514176405,1.18198133,3138.5,3137.8,0.7966993]
[1642514176606,1.18198133,3138.5,3137.9,0.04060209]
[1642514176805,1.18198133,3138.5,3137.9,0.04319687]
[1642514177005,1.93104317,3138.8,3138.0,0.00454739]
[1642514177206,0.1274,3138.7,3138.0,0.00454739]
[1642514178055,0.1274,3138.7,3137.9,0.00511581]
[1642514178252,1.20789808,3138.6,3138.1,1.15332205]
[1642514178654,0.1274,3138.7,3138.2,0.00341054]
[1642514178857,0.00113685,3139.0,3138.2,0.00341054]
[1642514179054,0.00113685,3139.0,3138.3,0.05384589]
[1642514179456,0.00113685,3139.0,3138.4,0.7987127]
[1642514179657,1.39906203,3139.0,3138.4,1.0987127]
[1642514179858,1.39906203,3139.0,3138.5,0.00170527]
[1642514180059,1.39906203,3139.0,3138.6,1.36768706]
[1642514180259,1.39906203,3139.0,3138.5,0.00170527]
[1642514181332,1.39906203,3139.0,3138.5,1.29657763]
[1642514181534,1.39906203,3139.0,3138.5,6.15619596]
[1642514181733,1.39906203,3139.0,3138.6,0.00113685]
[1642514181935,0.1274,3138.9,3138.6,0.00113685]
[1642514182738,2.15425168,3138.8,3138.6,0.00113685]
[1642514183135,0.1274,3138.9,3138.6,0.00113685]
[1642514184135,1.69114841,3138.7,3138.4,0.0022737]
[1642514184334,1.10296248,3138.5,3138.4,0.0022737]
[1642514185764,1.10296248,3138.5,3138.4,2.3522737]
[1642514185968,0.1274,3138.9,3138.4,2.3522737]
[1642514186365,0.1274,3138.9,3138.5,0.00170527]
[1642514187168,1.46333734,3138.9,3138.5,2.72023786]
[1642514187565,1.46333734,3138.9,3138.6,0.00113685]
[1642514188373,1.46333734,3138.9,3138.4,0.0022737]
[1642514188628,0.1274,3138.9,3138.4,1.39225788]
[1642514188812,0.79771685,3139.0,3138.4,1.39225788]
[1642514188813,0.00113685,3139.0,3138.4,1.39225788]
[1642514189013,0.00113685,3139.0,3138.5,0.00170527]
[1642514189612,0.00113685,3139.0,3138.8,1.71086569]
[1642514189817,0.00113685,3139.0,3138.5,0.12910527]
[1642514190217,0.00113685,3139.0,3138.6,0.00113685]
[1642514190418,0.00113685,3139.0,3138.6,0.79757475]
[1642514190617,0.00113685,3139.0,3138.6,0.00113685]
[1642514190817,1.39400549,3138.8,3138.6,0.00113685]
[1642514191221,0.79662,3138.9,3138.6,0.00113685]
[1642514191418,0.79662,3138.9,3138.7,2.71853259]
[1642514191817,0.79662,3138.9,3138.2,0.1274]
[1642514192017,0.00113685,3138.8,3138.1,0.1274]
[1642514192217,0.00113685,3138.8,3138.3,0.00170527]
[1642514192654,1.17825345,3138.7,3138.3,0.00170527]
[1642514193461,0.00113685,3138.8,3138.3,0.00170527]
[1642514194655,0.00113685,3138.8,3138.6,1.15027848]
[1642514194854,0.00113685,3138.8,3138.3,0.00170527]
[1642514195058,0.00113685,3138.8,3138.5,0.7168243]
[1642514195859,2.08138551,3139.2,3138.5,4.3168243]
[1642514196101,2.08138551,3139.2,3138.6,0.00113685]
[1642514196304,0.00170527,3139.1,3138.6,0.00113685]
[1642514196704,0.79661,3138.9,3138.6,0.00113685]
[1642514197103,0.12853685,3139.0,3138.2,0.00341054]
[1642514197104,0.1274,3138.8,3138.2,0.00341054]
[1642514197303,0.1274,3138.9,3138.1,0.00397897]
[1642514197504,0.1274,3138.7,3138.3,1.7261703]
[1642514197705,0.1274,3138.9,3138.4,1.26821531]
[1642514197905,0.1274,3138.9,3138.4,1.27048901]
[1642514198105,0.1274,3138.9,3138.5,0.00170527]
[1642514198304,0.00113685,3139.0,3138.5,0.00170527]
[1642514199405,0.00113685,3139.0,3138.4,0.0022737]
[1642514199858,0.00113685,3139.0,3138.4,2.11114079]
[1642514200254,0.00113685,3139.0,3138.5,0.00170527]
[1642514200655,1.4990217,3138.7,3138.4,0.0022737]
[1642514201255,1.3990217,3138.7,3138.4,0.0022737]
[1642514202858,1.3990217,3138.7,3138.5,0.54371166]
[1642514203258,1.3990217,3138.7,3138.6,0.00113685]
[1642514203460,0.00113685,3139.0,3138.6,0.00113685]
[1642514204109,0.00113685,3139.0,3138.7,0.54371166]
[1642514207456,0.1274,3138.9,3138.7,0.54371166]
[1642514208658,0.00113685,3139.0,3138.7,0.54371166]
[1642514209761,0.00113685,3139.0,3138.9,1.90078637]
[1642514210564,0.00113685,3139.0,3138.9,2.44449803]
[1642514211404,1.5023217,3139.5,3139.0,1.43680144]
[1642514211607,1.5023217,3139.5,3139.0,2.15355624]
[1642514211806,1.50516381,3139.5,3139.1,0.54371166]
[1642514212007,0.1274,3139.4,3139.1,0.54371166]
[1642514212406,0.00170527,3139.3,3139.1,0.54371166]
[1642514212608,0.1274,3139.2,3139.1,0.54371166]
[1642514212807,0.12853684,3139.2,3139.1,0.54371166]
[1642514213008,2.25313343,3139.2,3139.0,0.54371166]
[1642514213207,0.1274,3139.1,3139.0,0.54371166]
[1642514214309,0.1274,3139.1,3138.7,0.54371166]
[1642514214865,0.1274,3139.1,3138.8,0.00113685]
[1642514215258,1.3145227,3139.0,3138.8,0.00113685]
[1642514215461,0.1274,3138.9,3138.8,0.00113685]
[1642514216463,0.1274,3139.1,3138.8,0.00113685]
[1642514217061,0.1274,3139.1,3138.7,0.61797515]
[1642514217261,0.00113684,3139.0,3138.7,0.61797515]
[1642514218062,0.00113684,3139.0,3138.9,2.07003417]
[1642514218263,0.00113684,3139.0,3138.9,3.4352635]
[1642514218905,0.00113684,3139.0,3138.9,1.36522933]
[1642514219307,1.37084686,3139.3,3138.9,1.36522933]
[1642514219609,0.00113685,3139.2,3138.9,1.36522933]
[1642514220311,0.00113685,3139.2,3138.7,2.30122046]
[1642514220509,0.00113685,3139.2,3138.7,0.61797515]
[1642514220711,0.00113685,3139.2,3138.8,0.00113684]
[1642514222761,0.00113685,3139.2,3138.8,2.71963382]
[1642514223557,0.00113685,3139.2,3138.9,0.03823218]
[1642514223759,0.00113685,3139.2,3138.8,4.15311682]
[1642514223959,0.00113685,3139.2,3138.9,0.04405103]
[1642514224158,0.00113685,3139.2,3138.8,4.15311682]
[1642514224362,0.00113685,3139.2,3138.9,0.04922126]
[1642514224560,0.00113685,3139.2,3138.8,1.4653349]
[1642514224759,0.00113685,3139.2,3138.8,1.43461984]
[1642514225764,0.00113685,3139.2,3138.8,1.46495754]
[1642514225965,0.00113685,3139.2,3138.9,2.71839129]
[1642514227813,0.00113685,3139.2,3138.8,2.75111132]
[1642514228018,0.00113685,3139.2,3138.8,2.71952813]
[1642514228411,0.00113685,3139.2,3138.8,0.00113684]
[1642514230062,3.18767685,3139.2,3138.8,0.00113684]
[1642514230257,3.70596892,3139.1,3138.8,0.00113684]
[1642514230457,0.79679,3138.9,3138.4,0.00341054]
[1642514230663,2.11305039,3138.7,3138.4,0.00341054]
[1642514230859,0.1274,3138.6,3138.4,0.00341054]
[1642514231059,0.1274,3138.6,3137.4,3.3926714]
[1642514231060,1.92426,3138.6,3138.2,0.00454738]
[1642514231260,4.03656892,3138.5,3137.5,0.00852635]
[1642514231458,0.1274,3138.4,3137.5,0.00852635]
[1642514231758,0.79695,3138.3,3137.5,0.00852635]
[1642514231958,1.22438,3138.2,3137.5,0.00852635]
[1642514232159,1.13055638,3137.8,3137.5,0.00852635]
[1642514232358,0.1274,3137.7,3137.5,0.00852635]
[1642514232659,0.79696,3138.1,3137.5,0.00852635]
[1642514232660,0.79684,3138.1,3137.5,0.00852635]
[1642514232858,0.1274,3138.2,3137.5,0.00852635]
[1642514233058,0.1274,3138.4,3137.7,1.97630273]
[1642514233262,0.1274,3138.4,3137.7,2.69333323]
[1642514233460,0.1274,3138.8,3137.8,1.40697996]
[1642514233732,6.00134552,3139.0,3137.9,0.13365265]
[1642514233931,5.00134552,3139.0,3137.9,0.13365265]
[1642514234233,1.50134552,3139.0,3138.5,2.09344398]
[1642514234630,1.50134552,3139.0,3138.6,0.00227369]
[1642514235034,0.1274,3139.1,3138.6,0.00227369]
[1642514235236,0.1274,3139.4,3138.6,0.79277369]
[1642514235437,3.6274,3139.4,3138.6,0.82422181]
[1642514235635,3.24369428,3139.5,3138.7,0.16813488]
[1642514235840,3.24369428,3139.5,3138.7,0.04073488]
[1642514236335,3.24369428,3139.5,3139.0,3.22847297]
[1642514236535,3.24369428,3139.5,3139.0,3.97881075]
[1642514236737,3.24369428,3139.5,3139.0,0.75033778]
[1642514237361,3.24369428,3139.5,3139.0,0.75334524]
[1642514238357,3.24369428,3139.5,3139.0,0.7166606]
[1642514240462,3.24369428,3139.5,3138.9,1.46641563]
[1642514240663,3.24369428,3139.5,3138.9,1.4333211]
[1642514240868,3.24369428,3139.5,3138.7,0.00170527]
[1642514241109,3.24369428,3139.5,3138.7,0.30170527]
[1642514241711,1.3944725,3139.0,3138.7,0.30170527]
[1642514241912,4.16754428,3139.5,3138.7,0.00170527]
[1642514242114,3.37109428,3139.5,3138.7,0.33482978]
[1642514242713,3.24369428,3139.5,3138.8,0.1274]
[1642514242915,3.24369428,3139.5,3138.9,2.58417199]
[1642514243115,3.24369428,3139.5,3139.0,0.1274]
[1642514243314,3.24369428,3139.5,3139.1,6.28366065]
[1642514243517,3.24369428,3139.5,3139.1,7.78876065]
[1642514243714,3.24369428,3139.5,3139.1,6.3551]
[1642514245163,3.24369428,3139.5,3139.1,1.5051]
[1642514245362,3.24369428,3139.5,3139.0,0.1274]
[1642514245561,3.24369428,3139.5,3138.9,0.7166327]
[1642514245562,3.24369428,3139.5,3138.9,1.05653005]
[1642514245762,3.24369428,3139.5,3138.9,0.75653005]
[1642514246363,3.24369428,3139.5,3139.0,1.53657167]
[1642514246563,3.24369428,3139.5,3139.1,5.51268397]
[1642514247165,3.24369428,3139.5,3139.1,5.81268397]
[1642514247766,3.24369428,3139.5,3139.1,2.61268397]
[1642514248369,3.24369428,3139.5,3139.1,2.31268397]
[1642514248812,4.54306394,3139.5,3139.1,2.31268397]
[1642514249009,4.54306394,3139.5,3139.1,5.56268397]
[1642514249411,3.24369428,3139.5,3139.1,5.56268397]
[1642514249609,3.24369428,3139.5,3139.1,5.86268397]
[1642514249811,3.24369428,3139.5,3139.2,0.7166432]
[1642514250014,0.0022737,3139.4,3139.2,0.7166432]
[1642514250417,0.00170528,3139.3,3139.2,0.7166432]
[1642514250618,0.00170528,3139.3,3139.2,1.0166432]
[1642514262163,0.00170528,3139.3,3139.2,1.04770362]
[1642514262363,0.00170528,3139.3,3139.2,1.0166432]
[1642514264020,0.00170528,3139.3,3139.2,0.7166432]
[1642514266324,0.00170528,3139.3,3139.2,6.27911647]
[1642514266926,0.00170528,3139.3,3139.2,6.57911647]
[1642514267229,0.00170528,3139.3,3139.2,7.28401647]
[1642514268467,3.57856892,3140.1,3139.2,7.28401647]
[1642514268468,2.66630753,3141.0,3139.4,5.7]
[1642514268666,1.07406753,3141.0,3139.7,0.01284844]
[1642514268963,3.57856892,3140.8,3139.9,18.79]
[1642514269163,3.57856892,3140.8,3140.0,0.5853]
[1642514269364,0.00625265,3140.4,3140.0,0.5853]
[1642514269767,0.00568423,3140.3,3140.1,1.15541525]
[1642514269967,0.00568423,3140.3,3140.2,4.058]
[1642514270167,3.03628861,3140.7,3140.2,4.7743456]
[1642514270572,0.00625265,3140.4,3140.3,0.3]
[1642514270771,0.00625265,3140.4,3140.3,0.758]
[1642514271917,0.00625265,3140.4,3140.3,3.558]
[1642514272520,0.00625265,3140.4,3140.3,22.4753]
[1642514272919,0.00625265,3140.4,3140.3,24.72504879]
[1642514274218,0.00625265,3140.4,3140.3,5.93504879]
[1642514274880,0.00625265,3140.4,3140.3,8.58504879]
[1642514275072,0.00625265,3140.4,3140.3,5.93504879]
[1642514275268,0.00625265,3140.4,3140.3,3.6853]
[1642514275871,0.00625265,3140.4,3140.3,8.7136]
[1642514276271,0.00625265,3140.4,3140.3,10.41394802]
[1642514276672,0.00625265,3140.4,3140.3,29.20394802]